[Event "KNSB Bekerfinale"]
[Site "Haarlem, Netherlands"]
[Date "????.??.??"]
[Round "2.2"]
[White "Fridman, Daniel"]
[Black "Zwirs, Nico"]
[Result "1-0"]
[TimeControl "100 minutes + increment 10 seconds"]
[WhiteTitle "GM"]
[BlackTitle "IM"]
[WhiteFideId "11600454"]
[BlackFideId "1036432"]
[WhiteElo "2591"]
[BlackElo "2482"]

1. Nf3 {[%clk 01:40:17]} {[%emt 00:00:02]} d5 {[%clk 01:40:18]} {[%emt
00:00:03]} 2. g3 {[%clk 01:40:19]} {[%emt 00:00:08]} Nf6 {[%clk 01:39:50]}
{[%emt 00:00:38]} 3. Bg2 {[%clk 01:40:24]} {[%emt 00:00:05]} e6 {[%clk
01:39:56]} {[%emt 00:00:05]} 4. O-O {[%clk 01:39:59]} {[%emt 00:00:34]} Be7
{[%clk 01:39:18]} {[%emt 00:00:49]} 5. c4 {[%clk 01:40:01]} {[%emt 00:00:08]}
O-O {[%clk 01:39:21]} {[%emt 00:00:07]} 6. b3 {[%clk 01:38:22]} {[%emt
00:01:50]} c6 {[%clk 01:37:59]} {[%emt 00:01:32]} 7. Bb2 {[%clk 01:37:18]}
{[%emt 00:01:13]} b6 {[%clk 01:37:40]} {[%emt 00:00:29]} 8. Nc3 {[%clk
01:32:56]} {[%emt 00:04:32]} Nbd7 {[%clk 01:32:31]} {[%emt 00:05:19]} 9. d3
{[%clk 01:30:17]} {[%emt 00:02:49]} Bb7 {[%clk 01:31:28]} {[%emt 00:01:13]} 10.
e4 {[%clk 01:30:20]} {[%emt 00:00:07]} dxe4 {[%clk 01:26:36]} {[%emt 00:05:02]}
11. dxe4 {[%clk 01:28:45]} {[%emt 00:01:45]} Qc7 {[%clk 01:24:53]} {[%emt
00:01:52]} 12. Qe2 {[%clk 01:22:16]} {[%emt 00:06:39]} e5 {[%clk 01:24:56]}
{[%emt 00:00:07]} 13. Nh4 {[%clk 01:19:52]} {[%emt 00:02:34]} Rfe8 {[%clk
01:22:24]} {[%emt 00:02:42]} 14. Nf5 {[%clk 01:19:12]} {[%emt 00:00:50]} Bf8
{[%clk 01:22:13]} {[%emt 00:00:21]} 15. f4 {[%clk 01:18:04]} {[%emt 00:01:18]}
b5 {[%clk 01:04:49]} {[%emt 00:17:34]} 16. cxb5 {[%clk 01:14:50]} {[%emt
00:03:24]} cxb5 {[%clk 01:03:35]} {[%emt 00:01:24]} 17. Kh1 {[%clk 01:10:21]}
{[%emt 00:04:39]} b4 {[%clk 00:51:46]} {[%emt 00:11:59]} 18. Nd5 {[%clk
01:05:53]} {[%emt 00:04:38]} Bxd5 {[%clk 00:46:43]} {[%emt 00:05:14]} 19. exd5
{[%clk 01:05:33]} {[%emt 00:00:30]} exf4 {[%clk 00:46:00]} {[%emt 00:00:53]} 20.
Qd2 {[%clk 01:03:28]} {[%emt 00:02:14]} Rac8 {[%clk 00:42:56]} {[%emt
00:03:13]} 21. Rac1 {[%clk 00:53:18]} {[%emt 00:10:22]} Qa5 {[%clk 00:41:56]}
{[%emt 00:01:09]} 22. Rxc8 {[%clk 00:53:08]} {[%emt 00:00:21]} Rxc8 {[%clk
00:41:59]} {[%emt 00:00:06]} 23. Qxf4 {[%clk 00:53:13]} {[%emt 00:00:06]} Qxa2
{[%clk 00:23:18]} {[%emt 00:18:51]} 24. Nh6+ {[%clk 00:48:10]} {[%emt
00:05:12]} gxh6 {[%clk 00:21:48]} {[%emt 00:01:40]} 25. Bxf6 {[%clk 00:48:13]}
{[%emt 00:00:08]} Nxf6 {[%clk 00:21:44]} {[%emt 00:00:14]} 26. Qxf6 {[%clk
00:48:17]} {[%emt 00:00:06]} Rc7 {[%clk 00:12:17]} {[%emt 00:09:37]} 27. d6
{[%clk 00:47:53]} {[%emt 00:00:34]} Rd7 {[%clk 00:12:12]} {[%emt 00:00:14]} 28.
Qf5 {[%clk 00:47:46]} {[%emt 00:00:18]} 1-0

[Event "KNSB Bekerfinale"]
[Site "Haarlem, Netherlands"]
[Date "????.??.??"]
[Round "2.3"]
[White "Beerdsen, Thomas"]
[Black "Pavlidis, Antonioa"]
[Result "0-1"]
[TimeControl "100 minutes + increment 10 seconds"]
[WhiteTitle "GM"]
[BlackTitle "GM"]
[WhiteFideId "1030108"]
[BlackFideId "4212312"]
[WhiteElo "2497"]
[BlackElo "2584"]

1. e4 {[%clk 01:40:17]} {[%emt 00:00:02]} c5 {[%clk 01:40:12]} {[%emt
00:00:08]} 2. Nf3 {[%clk 01:40:22]} {[%emt 00:00:05]} Nc6 {[%clk 01:40:16]}
{[%emt 00:00:06]} 3. Bb5 {[%clk 01:39:47]} {[%emt 00:00:44]} Nf6 {[%clk
01:40:12]} {[%emt 00:00:14]} 4. Nc3 {[%clk 01:34:16]} {[%emt 00:05:41]} Qc7
{[%clk 01:40:04]} {[%emt 00:00:19]} 5. O-O {[%clk 01:33:36]} {[%emt 00:00:50]}
a6 {[%clk 01:39:36]} {[%emt 00:00:38]} 6. Bxc6 {[%clk 01:32:34]} {[%emt
00:01:12]} dxc6 {[%clk 01:39:42]} {[%emt 00:00:04]} 7. e5 {[%clk 01:31:28]}
{[%emt 00:01:16]} Nd5 {[%emt 00:02:05]} 8. Ne4 {[%clk 01:30:00]} Bf5 {[%clk
01:38:50]} {[%emt 00:00:44]} 9. Nxc5 {[%clk 01:26:12]} {[%emt 00:03:59]} e6
{[%clk 01:38:44]} {[%emt 00:00:15]} 10. Nb3 {[%clk 01:25:04]} {[%emt 00:01:19]}
c5 {[%clk 01:37:29]} {[%emt 00:01:25]} 11. d3 {[%clk 01:22:54]} {[%emt
00:02:20]} Be7 {[%clk 01:31:10]} {[%emt 00:06:29]} 12. Re1 {[%clk 01:18:35]}
{[%emt 00:04:30]} h6 {[%clk 01:27:26]} {[%emt 00:03:54]} 13. Bd2 {[%clk
01:13:08]} {[%emt 00:05:37]} g5 {[%clk 01:20:18]} {[%emt 00:07:17]} 14. c4
{[%clk 01:10:31]} {[%emt 00:02:47]} Nb6 {[%clk 01:19:10]} {[%emt 00:01:18]} 15.
Ba5 {[%clk 01:09:02]} {[%emt 00:01:39]} Qc6 {[%clk 01:15:37]} {[%emt 00:03:43]}
16. Bxb6 {[%clk 01:06:00]} {[%emt 00:03:12]} Qxb6 {[%clk 01:15:38]} {[%emt
00:00:09]} 17. d4 {[%clk 01:04:10]} {[%emt 00:02:00]} Rd8 {[%clk 01:02:53]}
{[%emt 00:12:55]} 18. d5 {[%clk 01:01:15]} {[%emt 00:03:05]} g4 {[%clk
01:01:38]} {[%emt 00:01:24]} 19. Nfd2 {[%clk 01:00:40]} {[%emt 00:00:46]} exd5
{[%clk 01:01:00]} {[%emt 00:00:49]} 20. cxd5 {[%clk 00:56:22]} {[%emt
00:04:28]} Rxd5 {[%clk 01:00:57]} {[%emt 00:00:13]} 21. Qc1 {[%clk 00:55:30]}
{[%emt 00:01:02]} Qg6 {[%clk 00:57:22]} {[%emt 00:03:44]} 22. Nc4 {[%clk
00:48:50]} {[%emt 00:06:51]} O-O {[%clk 00:52:40]} {[%emt 00:04:52]} 23. Ne3
{[%clk 00:45:09]} {[%emt 00:03:51]} Rxe5 {[%clk 00:52:35]} {[%emt 00:00:15]} 24.
Nxf5 {[%clk 00:45:07]} {[%emt 00:00:11]} Qxf5 {[%clk 00:52:35]} {[%emt
00:00:09]} 25. Qxh6 {[%clk 00:44:55]} {[%emt 00:00:23]} Re8 {[%clk 00:44:24]}
{[%emt 00:08:21]} 26. g3 {[%clk 00:39:20]} {[%emt 00:05:45]} Bf6 {[%clk
00:39:27]} {[%emt 00:05:08]} 27. Rxe5 {[%clk 00:32:57]} {[%emt 00:06:32]} Rxe5
{[%clk 00:39:21]} {[%emt 00:00:16]} 28. Rf1 {[%clk 00:30:20]} {[%emt 00:02:47]}
Re2 {[%clk 00:31:59]} {[%emt 00:07:32]} 29. Qc1 {[%clk 00:28:55]} {[%emt
00:01:34]} Rxb2 {[%clk 00:24:01]} {[%emt 00:08:08]} 30. Qxc5 {[%clk 00:28:01]}
{[%emt 00:01:05]} Qxc5 {[%clk 00:23:36]} {[%emt 00:00:35]} 31. Nxc5 {[%clk
00:28:06]} {[%emt 00:00:05]} Bd4 {[%clk 00:23:29]} {[%emt 00:00:17]} 32. Ne4
{[%clk 00:27:19]} {[%emt 00:00:57]} Rxa2 {[%clk 00:23:06]} {[%emt 00:00:32]} 33.
Rd1 {[%clk 00:27:16]} {[%emt 00:00:13]} Ra1 {[%clk 00:20:23]} {[%emt 00:02:53]}
34. Rxa1 {[%clk 00:27:10]} {[%emt 00:00:17]} Bxa1 {[%clk 00:20:31]} {[%emt
00:00:02]} 35. Nc5 {[%clk 00:27:10]} {[%emt 00:00:10]} a5 {[%clk 00:20:34]}
{[%emt 00:00:06]} 36. Nxb7 {[%clk 00:26:36]} {[%emt 00:00:44]} a4 {[%clk
00:20:39]} {[%emt 00:00:05]} 37. Nc5 {[%clk 00:25:22]} {[%emt 00:01:23]} a3
{[%clk 00:20:41]} {[%emt 00:00:08]} 38. Nd3 {[%clk 00:25:19]} {[%emt 00:00:13]}
Bd4 {[%clk 00:20:23]} {[%emt 00:00:28]} 39. Nb4 {[%clk 00:25:12]} {[%emt
00:00:18]} f5 {[%clk 00:18:42]} {[%emt 00:01:50]} 40. Kg2 {[%clk 00:20:35]}
{[%emt 00:04:47]} Kf7 {[%clk 00:17:19]} {[%emt 00:01:33]} 41. f3 {[%clk
00:19:08]} {[%emt 00:01:38]} Bc5 {[%clk 00:17:24]} {[%emt 00:00:05]} 42. Nc2
{[%clk 00:16:04]} {[%emt 00:03:13]} a2 {[%clk 00:17:13]} {[%emt 00:00:21]} 43.
fxg4 {[%clk 00:15:54]} {[%emt 00:00:21]} fxg4 {[%clk 00:17:19]} {[%emt
00:00:03]} 44. Kf1 {[%clk 00:14:44]} {[%emt 00:01:19]} Ke6 {[%clk 00:17:16]}
{[%emt 00:00:14]} 45. Ke2 {[%clk 00:14:50]} {[%emt 00:00:04]} Ke5 {[%clk
00:16:52]} {[%emt 00:00:34]} 46. Kd3 {[%clk 00:13:57]} {[%emt 00:01:03]} Bd4
{[%clk 00:16:46]} {[%emt 00:00:16]} 47. Kc4 {[%clk 00:13:30]} {[%emt 00:00:37]}
Ke4 {[%clk 00:16:44]} {[%emt 00:00:12]} 48. Kb3 {[%clk 00:13:30]} {[%emt
00:00:09]} a1=Q {[%clk 00:15:57]} {[%emt 00:00:58]} 0-1

[Event "KNSB Bekerfinale"]
[Site "Haarlem, Netherlands"]
[Date "????.??.??"]
[Round "2.4"]
[White "Bosch, Jeroen"]
[Black "Van Delft, Merijn"]
[Result "1/2-1/2"]
[TimeControl "100 minutes + increment 10 seconds"]
[WhiteTitle "IM"]
[BlackTitle "IM"]
[WhiteFideId "1001280"]
[BlackFideId "1004670"]
[WhiteElo "2393"]
[BlackElo "2391"]

1. d4 {[%clk 01:40:16]} {[%emt 00:00:03]} Nf6 {[%clk 01:40:04]} {[%emt
00:00:16]} 2. c4 {[%clk 01:40:06]} {[%emt 00:00:21]} g6 {[%clk 01:40:06]}
{[%emt 00:00:08]} 3. Nc3 {[%clk 01:39:51]} {[%emt 00:00:25]} Bg7 {[%clk
01:40:04]} {[%emt 00:00:07]} 4. e4 {[%clk 01:39:49]} {[%emt 00:00:17]} d6
{[%clk 01:40:03]} {[%emt 00:00:10]} 5. Nf3 {[%clk 01:38:08]} {[%emt 00:01:52]}
O-O {[%clk 01:39:53]} {[%emt 00:00:16]} 6. Be2 {[%clk 01:38:14]} {[%emt
00:00:08]} e5 {[%clk 01:39:28]} {[%emt 00:00:31]} 7. d5 {[%clk 01:37:58]}
{[%emt 00:00:29]} a5 {[%clk 01:39:10]} {[%emt 00:00:26]} 8. O-O {[%clk
01:32:46]} {[%emt 00:05:25]} Na6 {[%clk 01:36:06]} {[%emt 00:03:13]} 9. Qc2
{[%clk 01:31:36]} {[%emt 00:01:21]} Bd7 {[%clk 01:32:50]} {[%emt 00:03:24]} 10.
Bg5 {[%clk 01:21:42]} {[%emt 00:10:06]} h6 {[%clk 01:32:07]} {[%emt 00:00:52]}
11. Bh4 {[%clk 01:20:45]} {[%emt 00:01:08]} Qe8 {[%clk 01:30:57]} {[%emt
00:01:19]} 12. Nd2 {[%clk 01:19:22]} {[%emt 00:01:34]} Nh7 {[%clk 01:28:30]}
{[%emt 00:02:34]} 13. b3 {[%clk 01:18:42]} {[%emt 00:00:53]} h5 {[%clk
01:27:45]} {[%emt 00:00:54]} 14. f3 {[%clk 01:18:44]} {[%emt 00:00:09]} Bf6
{[%clk 01:27:18]} {[%emt 00:00:35]} 15. Bf2 {[%clk 01:18:03]} {[%emt 00:00:52]}
h4 {[%clk 01:26:14]} {[%emt 00:01:13]} 16. a3 {[%clk 01:17:08]} {[%emt
00:01:06]} Qe7 {[%clk 01:25:12]} {[%emt 00:01:12]} 17. Rab1 {[%clk 01:14:14]}
{[%emt 00:03:04]} Bg5 {[%clk 01:16:30]} {[%emt 00:08:50]} 18. Rfd1 {[%clk
01:03:39]} {[%emt 00:10:47]} Nf6 {[%clk 01:15:10]} {[%emt 00:01:29]} 19. b4
{[%clk 00:58:08]} {[%emt 00:05:42]} b6 {[%clk 01:05:14]} {[%emt 00:10:05]} 20.
bxa5 {[%clk 00:38:19]} {[%emt 00:20:01]} bxa5 {[%clk 01:03:52]} {[%emt
00:01:30]} 21. Nb5 {[%clk 00:38:21]} {[%emt 00:00:10]} Nh5 {[%clk 00:59:58]}
{[%emt 00:04:00]} 22. c5 {[%clk 00:27:10]} {[%emt 00:11:25]} Nxc5 {[%clk
00:55:54]} {[%emt 00:04:12]} 23. Nb3 {[%clk 00:27:15]} {[%emt 00:00:06]} Na6
{[%clk 00:46:45]} {[%emt 00:09:18]} 24. Nxa5 {[%clk 00:26:16]} {[%emt
00:01:09]} f5 {[%clk 00:39:42]} {[%emt 00:07:12]} 25. Nc6 {[%clk 00:23:44]}
{[%emt 00:02:43]} Qf6 {[%clk 00:35:51]} {[%emt 00:04:01]} 26. Nb4 {[%clk
00:13:48]} {[%emt 00:10:07]} fxe4 {[%clk 00:31:22]} {[%emt 00:04:38]} 27. Nxa6
{[%clk 00:12:55]} {[%emt 00:01:03]} exf3 {[%clk 00:28:49]} {[%emt 00:02:43]} 28.
Bxf3 {[%clk 00:10:34]} {[%emt 00:02:32]} Rxa6 {[%clk 00:27:20]} {[%emt
00:01:36]} 29. Nxc7 {[%clk 00:09:19]} {[%emt 00:01:27]} Rxa3 {[%clk 00:21:41]}
{[%emt 00:05:49]} 30. Ne6 {[%clk 00:07:50]} {[%emt 00:01:40]} Bxe6 {[%clk
00:17:02]} {[%emt 00:04:49]} 31. dxe6 {[%clk 00:07:46]} {[%emt 00:00:14]} Rxf3
{[%clk 00:16:54]} {[%emt 00:00:18]} 32. e7 {[%clk 00:05:34]} {[%emt 00:02:22]}
Re8 {[%clk 00:15:09]} {[%emt 00:01:55]} 33. gxf3 {[%clk 00:05:37]} {[%emt
00:00:08]} Rxe7 {[%clk 00:14:12]} {[%emt 00:01:07]} 34. Rb6 {[%clk 00:04:39]}
{[%emt 00:01:08]} Re6 {[%clk 00:12:01]} {[%emt 00:02:20]} 35. Qc8+ {[%clk
00:03:37]} {[%emt 00:01:12]} Kh7 {[%clk 00:11:41]} {[%emt 00:00:29]} 36. Rdxd6
{[%clk 00:03:01]} {[%emt 00:00:47]} Rxd6 {[%clk 00:10:44]} {[%emt 00:01:07]} 37.
Qc7+ {[%clk 00:03:10]} {[%emt 00:00:02]} Kh6 {[%clk 00:09:00]} {[%emt
00:01:53]} 38. Qxd6 {[%clk 00:03:17]} {[%emt 00:00:04]} Qf5 {[%clk 00:08:38]}
{[%emt 00:00:32]} 39. Rb8 {[%clk 00:01:58]} {[%emt 00:01:29]} Qxf3 {[%clk
00:06:01]} {[%emt 00:02:46]} 40. Qf8+ {[%clk 00:01:22]} {[%emt 00:00:47]} Qxf8
{[%clk 00:05:53]} {[%emt 00:00:19]} 41. Rxf8 {[%clk 00:01:31]} Kg7 {[%clk
00:04:12]} {[%emt 00:01:50]} 42. Ra8 {[%clk 00:01:28]} {[%emt 00:00:13]} Kf6
{[%clk 00:04:15]} {[%emt 00:00:07]} 43. Kg2 {[%clk 00:01:14]} {[%emt 00:00:25]}
Kf5 {[%clk 00:02:30]} {[%emt 00:01:55]} 44. Rf8+ {[%clk 00:01:21]} {[%emt
00:00:03]} Nf6 {[%clk 00:02:39]} 45. Kh3 {[%clk 00:00:57]} {[%emt 00:00:35]}
Bh6 {[%clk 00:02:35]} {[%emt 00:00:14]} 46. Rh8 {[%clk 00:00:34]} {[%emt
00:00:32]} Bg7 {[%clk 00:02:44]} {[%emt 00:00:01]} 47. Rxh4 {[%clk 00:00:35]}
{[%emt 00:00:09]} g5 {[%clk 00:02:52]} {[%emt 00:00:01]} 48. Ra4 {[%clk
00:00:42]} {[%emt 00:00:03]} Bh6 {[%clk 00:02:59]} {[%emt 00:00:03]} 49. Kg2
{[%clk 00:00:49]} {[%emt 00:00:02]} Nd5 {[%clk 00:02:52]} {[%emt 00:00:18]} 50.
Bg3 {[%clk 00:00:51]} {[%emt 00:00:08]} Ne3+ {[%clk 00:02:07]} {[%emt
00:00:55]} 51. Kf3 {[%clk 00:00:58]} {[%emt 00:00:03]} g4+ {[%clk 00:02:14]}
{[%emt 00:00:03]} 52. Ke2 {[%clk 00:01:02]} {[%emt 00:00:06]} Nd5 {[%clk
00:02:21]} {[%emt 00:00:03]} 53. Ra5 {[%clk 00:01:00]} {[%emt 00:00:12]} Nf4+
{[%clk 00:02:27]} {[%emt 00:00:04]} 54. Kf2 {[%clk 00:00:42]} {[%emt 00:00:28]}
Nd3+ {[%clk 00:02:10]} {[%emt 00:00:27]} 55. Ke2 {[%clk 00:00:50]} {[%emt
00:00:02]} Nf4+ {[%clk 00:02:18]} {[%emt 00:00:03]} 56. Kf2 {[%clk 00:00:59]}
{[%emt 00:00:01]} Bg5 {[%clk 00:02:04]} {[%emt 00:00:24]} 57. Bxf4 {[%clk
00:01:03]} {[%emt 00:00:06]} Bxf4 {[%clk 00:02:11]} {[%emt 00:00:02]} 58. Kg2
{[%clk 00:01:11]} {[%emt 00:00:01]} Ke4 {[%clk 00:02:16]} {[%emt 00:00:05]}
1/2-1/2

[Event "KNSB Bekerfinale"]
[Site "Haarlem, Netherlands"]
[Date "????.??.??"]
[Round "2.5"]
[White "Schoppen, Casper"]
[Black "Van Wessel, Rudy"]
[Result "1-0"]
[TimeControl "100 minutes + increment 10 seconds"]
[WhiteTitle "GM"]
[BlackTitle "IM"]
[WhiteFideId "1046730"]
[BlackFideId "1004395"]
[WhiteElo "2558"]
[BlackElo "2347"]

1. Nf3 {[%clk 01:39:56]} {[%emt 00:00:23]} d5 {[%clk 01:39:59]} {[%emt
00:00:21]} 2. g3 {[%clk 01:39:17]} {[%emt 00:00:50]} Nf6 {[%clk 01:38:59]}
{[%emt 00:01:09]} 3. Bg2 {[%clk 01:39:19]} {[%emt 00:00:08]} c6 {[%clk
01:39:04]} {[%emt 00:00:05]} 4. O-O {[%clk 01:39:17]} {[%emt 00:00:12]} Bg4
{[%clk 01:37:34]} {[%emt 00:01:39]} 5. h3 {[%clk 01:38:47]} {[%emt 00:00:40]}
Bxf3 {[%clk 01:37:36]} {[%emt 00:00:09]} 6. Bxf3 {[%clk 01:38:51]} {[%emt
00:00:06]} e5 {[%clk 01:35:30]} {[%emt 00:02:16]} 7. d4 {[%clk 01:38:20]}
{[%emt 00:00:41]} Nbd7 {[%clk 01:32:03]} {[%emt 00:03:37]} 8. c4 {[%clk
01:37:59]} {[%emt 00:00:31]} dxc4 {[%clk 01:31:29]} {[%emt 00:00:45]} 9. Nd2
{[%clk 01:37:53]} {[%emt 00:00:15]} exd4 {[%clk 01:27:16]} {[%emt 00:04:23]} 10.
Nxc4 {[%clk 01:37:49]} {[%emt 00:00:15]} Nc5 {[%clk 01:03:23]} {[%emt
00:24:02]} 11. b4 {[%clk 01:36:12]} {[%emt 00:01:48]} Ne6 {[%clk 01:02:15]}
{[%emt 00:01:18]} 12. Rb1 {[%clk 01:32:24]} {[%emt 00:03:58]} Be7 {[%clk
00:47:28]} {[%emt 00:14:57]} 13. b5 {[%clk 01:28:53]} {[%emt 00:03:41]} O-O
{[%clk 00:41:42]} {[%emt 00:05:56]} 14. bxc6 {[%clk 01:24:50]} {[%emt
00:04:14]} bxc6 {[%clk 00:41:44]} {[%emt 00:00:07]} 15. Ne5 {[%clk 01:23:45]}
{[%emt 00:01:14]} c5 {[%clk 00:37:20]} {[%emt 00:04:36]} 16. Nc6 {[%clk
01:22:49]} {[%emt 00:01:06]} Qd7 {[%clk 00:36:45]} {[%emt 00:00:44]} 17. Nxe7+
{[%clk 01:22:43]} {[%emt 00:00:16]} Qxe7 {[%clk 00:36:53]} {[%emt 00:00:02]} 18.
Bxa8 {[%clk 01:22:45]} {[%emt 00:00:09]} Rxa8 {[%clk 00:36:58]} {[%emt
00:00:04]} 19. e3 {[%clk 01:21:08]} {[%emt 00:01:48]} Rd8 {[%clk 00:33:51]}
{[%emt 00:03:16]} 20. exd4 {[%clk 01:18:57]} {[%emt 00:02:22]} cxd4 {[%clk
00:33:40]} {[%emt 00:00:21]} 21. Qd3 {[%clk 01:13:59]} {[%emt 00:05:07]} Qd7
{[%clk 00:26:16]} {[%emt 00:07:34]} 22. Qb5 {[%clk 01:04:00]} {[%emt 00:10:10]}
Qc8 {[%clk 00:22:42]} {[%emt 00:03:42]} 23. Re1 {[%clk 00:52:47]} {[%emt
00:11:24]} h6 {[%clk 00:19:22]} {[%emt 00:03:31]} 24. Qf5 {[%clk 00:46:14]}
{[%emt 00:06:43]} Nd5 {[%clk 00:16:48]} {[%emt 00:02:43]} 25. Bd2 {[%clk
00:40:15]} {[%emt 00:06:10]} Ng5 {[%clk 00:11:34]} {[%emt 00:05:24]} 26. Re5
{[%clk 00:38:57]} {[%emt 00:01:28]} Nxh3+ {[%clk 00:05:28]} {[%emt 00:06:16]}
27. Kg2 {[%clk 00:37:54]} {[%emt 00:01:12]} Qxf5 {[%clk 00:05:17]} {[%emt
00:00:21]} 28. Rxf5 {[%clk 00:37:59]} {[%emt 00:00:06]} Ng5 {[%clk 00:05:22]}
{[%emt 00:00:05]} 29. Bxg5 {[%clk 00:33:57]} {[%emt 00:04:12]} hxg5 {[%clk
00:05:28]} {[%emt 00:00:03]} 30. Rd1 {[%clk 00:33:04]} {[%emt 00:01:03]} Nc3
{[%clk 00:04:17]} {[%emt 00:01:21]} 31. Rd3 {[%clk 00:28:21]} {[%emt 00:04:53]}
Nxa2 {[%clk 00:03:26]} {[%emt 00:01:00]} 32. Rxg5 {[%clk 00:28:21]} {[%emt
00:00:11]} Nb4 {[%clk 00:03:20]} {[%emt 00:00:16]} 33. Rd1 {[%clk 00:28:11]}
{[%emt 00:00:20]} Rd6 {[%clk 00:00:25]} {[%emt 00:03:05]} 34. Rb5 {[%clk
00:26:00]} {[%emt 00:02:21]} Nc6 {[%clk 00:00:29]} {[%emt 00:00:06]} 35. Rc5
{[%clk 00:25:35]} {[%emt 00:00:35]} g6 {[%clk 00:00:33]} {[%emt 00:00:06]} 36.
Kf3 {[%clk 00:24:13]} {[%emt 00:01:32]} Kg7 {[%clk 00:00:36]} {[%emt 00:00:07]}
37. Ke2 {[%clk 00:23:44]} {[%emt 00:00:39]} Nd8 {[%clk 00:00:42]} {[%emt
00:00:04]} 38. Ra5 {[%clk 00:23:32]} {[%emt 00:00:23]} Nc6 {[%clk 00:00:28]}
{[%emt 00:00:24]} 39. Ra6 {[%clk 00:22:36]} {[%emt 00:01:05]} Kf6 {[%clk
00:00:36]} {[%emt 00:00:02]} 40. Rc1 {[%clk 00:21:59]} {[%emt 00:00:47]} Re6+
{[%clk 00:00:45]} 41. Kd2 {[%clk 00:21:49]} {[%emt 00:00:19]} Ne5 {[%clk
00:00:53]} {[%emt 00:00:02]} 42. Rxa7 {[%clk 00:21:37]} {[%emt 00:00:23]} g5
{[%clk 00:00:47]} {[%emt 00:00:17]} 43. Rc5 {[%clk 00:15:44]} {[%emt 00:06:03]}
g4 {[%clk 00:00:18]} {[%emt 00:00:39]} 44. Kc2 {[%clk 00:14:15]} {[%emt
00:01:38]} Kg6 {[%clk 00:00:23]} {[%emt 00:00:05]} 45. Rd5 {[%clk 00:13:34]}
{[%emt 00:00:51]} d3+ {[%clk 00:00:31]} {[%emt 00:00:02]} 46. Kd2 {[%clk
00:13:24]} {[%emt 00:00:20]} f6 {[%clk 00:00:38]} {[%emt 00:00:04]} 47. Ra4
{[%clk 00:12:07]} {[%emt 00:01:28]} Rc6 {[%clk 00:00:19]} {[%emt 00:00:28]} 48.
Rf4 {[%clk 00:11:56]} {[%emt 00:00:21]} Rc2+ {[%clk 00:00:19]} {[%emt
00:00:11]} 49. Kd1 {[%clk 00:11:59]} {[%emt 00:00:06]} Ra2 {[%clk 00:00:18]}
{[%emt 00:00:11]} 50. Rd6 {[%clk 00:11:09]} {[%emt 00:01:00]} Ra1+ {[%clk
00:00:24]} {[%emt 00:00:04]} 51. Kd2 {[%clk 00:11:17]} {[%emt 00:00:02]} Nf3+
{[%clk 00:00:17]} {[%emt 00:00:17]} 52. Kc3 {[%clk 00:10:37]} {[%emt 00:00:49]}
Rc1+ {[%clk 00:00:14]} {[%emt 00:00:13]} 53. Kb2 {[%clk 00:10:34]} {[%emt
00:00:13]} Rc2+ {[%clk 00:00:22]} {[%emt 00:00:02]} 54. Kb3 {[%clk 00:10:17]}
{[%emt 00:00:27]} Rxf2 {[%clk 00:00:20]} {[%emt 00:00:13]} 55. Rxg4+ {[%clk
00:08:05]} {[%emt 00:02:21]} Kf5 {[%clk 00:00:12]} {[%emt 00:00:18]} 56. Rf4+
{[%clk 00:07:34]} {[%emt 00:00:41]} Ke5 {[%clk 00:00:21]} {[%emt 00:00:01]} 57.
Rxd3 {[%clk 00:06:58]} {[%emt 00:00:46]} Nd2+ {[%clk 00:00:15]} {[%emt
00:00:17]} 58. Kc2 {[%clk 00:06:49]} {[%emt 00:00:19]} Ne4+ {[%clk 00:00:17]}
{[%emt 00:00:08]} 59. Rxf2 {[%clk 00:06:54]} {[%emt 00:00:04]} Nxf2 {[%clk
00:00:25]} 60. Rf3 {[%clk 00:06:22]} {[%emt 00:00:43]} Ne4 {[%clk 00:00:25]}
{[%emt 00:00:10]} 61. Kd3 {[%clk 00:05:56]} {[%emt 00:00:36]} f5 {[%clk
00:00:12]} {[%emt 00:00:24]} 62. Ke2 {[%clk 00:05:55]} {[%emt 00:00:10]} Nf6
{[%clk 00:00:15]} {[%emt 00:00:07]} 63. Re3+ {[%clk 00:05:10]} {[%emt
00:00:55]} Ne4 {[%clk 00:00:18]} {[%emt 00:00:06]} 64. Kf3 {[%clk 00:05:14]}
{[%emt 00:00:05]} Kf6 {[%clk 00:00:24]} {[%emt 00:00:04]} 65. Ra3 {[%clk
00:04:02]} {[%emt 00:01:23]} Ng5+ {[%clk 00:00:33]} {[%emt 00:00:02]} 66. Ke3
{[%clk 00:03:59]} {[%emt 00:00:13]} Ne6 {[%clk 00:00:22]} {[%emt 00:00:21]} 67.
Ra5 {[%clk 00:04:07]} {[%emt 00:00:02]} Kg6 {[%clk 00:00:29]} {[%emt 00:00:02]}
68. Kf3 {[%clk 00:03:57]} {[%emt 00:00:20]} Kf6 {[%clk 00:00:36]} {[%emt
00:00:03]} 69. Kg2 {[%clk 00:04:05]} {[%emt 00:00:02]} Nd4 {[%clk 00:00:23]}
{[%emt 00:00:23]} 70. Kh3 {[%clk 00:04:10]} {[%emt 00:00:05]} Nf3 {[%clk
00:00:27]} {[%emt 00:00:06]} 71. Ra3 {[%clk 00:04:02]} {[%emt 00:00:17]} Ng5+
{[%clk 00:00:21]} {[%emt 00:00:16]} 72. Kh4 {[%clk 00:04:10]} {[%emt 00:00:02]}
Ne6 {[%clk 00:00:23]} {[%emt 00:00:09]} 73. Kh5 {[%clk 00:04:01]} {[%emt
00:00:19]} Ng7+ {[%clk 00:00:17]} {[%emt 00:00:16]} 74. Kh6 {[%clk 00:04:09]}
{[%emt 00:00:02]} Ne6 {[%clk 00:00:25]} {[%emt 00:00:02]} 75. Rf3 {[%clk
00:04:11]} {[%emt 00:00:08]} Ng5 {[%clk 00:00:22]} {[%emt 00:00:13]} 76. Rf1
{[%clk 00:04:16]} {[%emt 00:00:05]} Ne6 {[%clk 00:00:00]} {[%emt 00:00:23]} 77.
g4 {[%emt 00:00:05]} f4 {[%emt 00:00:11]} 1-0